{"text_format":"1","workbook":"xlsx","n_sheets":6,"sheets":["Automat 1","Automat 2","Automat 3","Automat 4","Automat 5","Automat 6"],"not_rendered":{"charts":0,"images":2,"macros":1,"external_links":0,"defined_names":17,"comments":0,"pivot_tables":0},"unopened":[],"bounds":{"document_bytes":16777216,"sheet_cells":100000,"rows_first":2000,"rows_last":500,"rows_between":2000,"halvings":0,"cell_chars":16384,"cell_head_chars":4096},"cells_cut":0,"cells_raw":0,"read":"whole","date_system":"1900"}

{"sheet":"Automat 1","index":0,"n_rows":22,"n_cols":33,"rows_kept":22,"cut":false,"hidden":false,"merged":[]}
[null,null,null,null,null,null,null,null,null,null,null,null,null,0,"s",null,null,null,null,null,null,null,null,null,null,null,null,null,null,"Zufallsgenerator"]
[]
[null,"Stausymbol",null,null,null,null,null,null,null,{"$f":"MIN(J4,I3,J2,K3)+1","v":1},{"$f":"MIN(K4,J3,K2,L3)+1","v":2},3,4,5,6,7,8,9,null,null,null,null,null,null,null,null,null,null,null,null,null,null,{"$f":"RAND()","v":0.77131453948216033}]
[null,null,null,null,null,null,null,null,null,0,1,2,3,4,5,6,7,8,null,null,null,null,null,null,null,null,null,null,null,null,null,null,{"$f":"RAND()","v":0.52750593924250166}]
[null,null,null,null,null,null,null,null,null,0,1,2,3,4,5,6,7,8,9,null,null,null,null,null,null,null,null,null,null,null,null,null,0.42041965943150772]
[null,null,null,null,null,null,null,null,null,1,null,null,null,null,6,null,null,null,null,null,null,null,null,null,null,null,null,null,null,null,null,null,0.50956334951749682]
[null,null,null,null,null,null,null,null,null,2,3,4,5,6,7,8,9,10,11,null,null,null,null,null,null,null,null,null,null,null,null,null,6.2611522319180657E-2]
[null,null,null,null,null,null,null,null,null,3,null,null,null,null,8,null,null,null,null,null,null,null,null,null,null,null,null,null,null,null,null,null,0.30551867185541437]
[null,null,null,null,null,null,null,null,null,4,5,6,7,8,9,10,11,12,13,null,null,null,null,null,null,null,null,null,null,null,null,null,4.3332040112894155E-2]
[null,null,null,null,null,null,null,null,null,5,null,null,null,null,10,null,null,null,null,null,null,null,null,null,null,null,null,null,null,null,null,null,0.98922105211027134]
[null,null,null,null,null,null,null,null,null,6,7,8,9,10,11,12,13,14,15,null,null,null,null,null,null,null,null,null,null,null,null,null,0.4521299690094186]
[null,null,null,null,null,null,null,null,null,null,null,9,10,11,12,13,14,15,16,null,null,null,null,null,null,null,null,null,null,null,null,null,0.69764914555749347]
[null,null,null,null,null,null,null,null,null,null,null,null,null,null,null,null,null,null,null,null,null,null,null,null,null,null,null,null,null,null,null,null,0.2539242587139573]
[null,null,null,null,null,null,null,null,null,null,null,null,null,null,null,null,null,null,null,null,null,null,null,null,null,null,null,null,null,null,null,null,0.33099925854830914]
[null,null,null,null,null,null,null,null,null,null,null,null,null,null,null,null,null,null,null,null,null,null,null,null,null,null,null,null,null,null,null,null,0.72520863100376842]
[null,null,null,null,null,null,null,null,null,null,null,null,null,null,null,null,null,null,null,null,null,null,null,null,null,null,null,null,null,null,null,null,0.9707125422973597]
[null,null,null,null,null,null,null,null,null,null,null,null,null,null,null,null,null,null,null,null,null,null,null,null,null,null,null,null,null,null,null,null,8.9800758470138908E-2]
[null,null,null,null,null,null,null,null,null,null,null,null,null,null,null,null,null,null,null,null,null,null,null,null,null,null,null,null,null,null,null,null,3.4782432627052717E-2]
[null,null,null,null,null,null,null,null,null,null,null,null,null,null,null,null,null,null,null,null,null,null,null,null,null,null,null,null,null,null,null,null,0.90857542460832119]
[null,null,null,null,null,null,null,null,null,null,null,null,null,null,null,null,null,null,null,null,null,null,null,null,null,null,null,null,null,null,null,null,0.27889464895754146]
[null,null,null,null,null,null,null,null,null,null,null,null,null,null,null,null,null,null,null,null,null,null,null,null,null,null,null,null,null,null,null,null,0.23051824516266606]
[null,null,null,null,null,null,null,null,null,null,null,null,null,null,null,null,null,null,null,null,null,null,null,null,null,null,null,null,null,null,null,null,3.969686697389252E-2]

{"sheet":"Automat 2","index":1,"n_rows":22,"n_cols":33,"rows_kept":22,"cut":false,"hidden":false,"merged":[]}
[null,null,null,null,null,null,null,null,null,null,null,null,null,0,"s",null,null,null,null,null,null,null,null,null,null,null,null,null,null,"Zufallsgenerator"]
[]
[null,"Stausymbol",null,null,null,null,null,null,null,{"$f":"MIN(I3,J2,K3,J4)+1","v":1},{"$f":"MIN(J3,K2,L3,K4)+1","v":2},3,4,{"$f":"MIN(N4,M3,N2,O3)+1","v":5},{"$f":"MIN(N3,O2,P3,O4)+1","v":6},7,8,9,null,null,null,null,null,null,null,null,null,null,null,null,null,null,{"$f":"RAND()","v":0.89819532608841268}]
[null,null,null,null,null,null,null,null,null,0,1,2,3,4,5,6,7,8,null,null,null,null,null,null,null,null,null,null,null,null,null,null,{"$f":"RAND()","v":0.71462530019975457}]
[null,null,null,null,null,null,null,null,null,0,1,2,3,4,5,6,7,8,null,null,null,null,null,null,null,null,null,null,null,null,null,null,0.36302926399289581]
[null,null,null,null,null,null,null,null,null,null,null,null,null,5,null,null,null,null,null,null,null,null,null,null,null,null,null,null,null,null,null,null,0.47939914312838217]
[null,null,null,null,null,null,null,null,null,{"$f":"MIN(I7,J6,K7,J8)+1","v":10},{"$f":"MIN(K8,J7,K6,L7)+1","v":9},8,7,6,7,8,9,10,null,null,null,null,null,null,null,null,null,null,null,null,null,null,0.31579556038908208]
[null,null,null,null,null,null,null,null,null,null,null,null,null,7,null,null,null,null,null,null,null,null,null,null,null,null,null,null,null,null,null,null,0.33210025039888191]
[null,null,null,null,null,null,null,null,null,{"$f":"MIN(J10,I9,J8,K9)+1","v":12},11,10,9,8,9,10,11,12,null,null,null,null,null,null,null,null,null,null,null,null,null,null,0.20867989576030499]
[null,null,null,null,null,null,null,null,null,null,null,null,null,9,null,null,null,null,null,null,null,null,null,null,null,null,null,null,null,null,null,null,0.88979312977463898]
[null,null,null,null,null,null,null,null,null,{"$f":"MIN(J12,I11,J10,K11)+1","v":14},13,12,11,10,11,12,13,14,null,null,null,null,null,null,null,null,null,null,null,null,null,null,0.24535969581299311]
[null,null,null,null,null,null,null,null,null,null,null,null,null,null,null,null,null,null,null,null,null,null,null,null,null,null,null,null,null,null,null,null,0.12101848333742737]
[null,null,null,null,null,null,null,null,null,null,null,null,null,null,null,null,null,null,null,null,null,null,null,null,null,null,null,null,null,null,null,null,0.76052845549824544]
[null,null,null,null,null,null,null,null,null,null,null,null,null,null,null,null,null,null,null,null,null,null,null,null,null,null,null,null,null,null,null,null,0.57796391852705731]
[null,null,null,null,null,null,null,null,null,null,null,null,null,null,null,null,null,null,null,null,null,null,null,null,null,null,null,null,null,null,null,null,0.21855002604747575]
[null,null,null,null,null,null,null,null,null,null,null,null,null,null,null,null,null,null,null,null,null,null,null,null,null,null,null,null,null,null,null,null,0.40001858852718464]
[null,null,null,null,null,null,null,null,null,null,null,null,null,null,null,null,null,null,null,null,null,null,null,null,null,null,null,null,null,null,null,null,0.26816981683224539]
[null,null,null,null,null,null,null,null,null,null,null,null,null,null,null,null,null,null,null,null,null,null,null,null,null,null,null,null,null,null,null,null,0.32584357273275144]
[null,null,null,null,null,null,null,null,null,null,null,null,null,null,null,null,null,null,null,null,null,null,null,null,null,null,null,null,null,null,null,null,0.32614637430564752]
[null,null,null,null,null,null,null,null,null,null,null,null,null,null,null,null,null,null,null,null,null,null,null,null,null,null,null,null,null,null,null,null,0.74151653203237489]
[null,null,null,null,null,null,null,null,null,null,null,null,null,null,null,null,null,null,null,null,null,null,null,null,null,null,null,null,null,null,null,null,0.90442954829723543]
[null,null,null,null,null,null,null,null,null,null,null,null,null,null,null,null,null,null,null,null,null,null,null,null,null,null,null,null,null,null,null,null,0.4587286179662089]

{"sheet":"Automat 3","index":2,"n_rows":22,"n_cols":33,"rows_kept":22,"cut":false,"hidden":false,"merged":[]}
[null,null,null,null,null,null,null,null,null,null,null,null,null,0,"s",null,null,null,null,null,null,null,null,null,null,null,null,null,null,"Zufallsgenerator"]
[]
[null,"Stausymbol",null,null,null,null,null,null,null,{"$f":"MIN(I3,J2,K3,J4)+1","v":1},{"$f":"MIN(J3,K2,L3,K4)+1","v":2},3,4,5,{"$f":"MIN(O4,N3,O2,P3)+1","v":6},{"$f":"MIN(O3,P2,Q3,P4)+1","v":7},8,9,10,null,null,null,null,null,null,null,null,null,null,null,null,null,{"$f":"RAND()","v":0.10100126725314706}]
[null,null,null,null,null,null,null,null,null,0,1,2,3,4,5,6,7,8,9,null,null,null,null,null,null,null,null,null,null,null,null,null,{"$f":"RAND()","v":0.71108867063120518}]
[null,null,null,null,null,null,null,null,null,0,1,2,3,4,5,6,7,8,9,null,null,null,null,null,null,null,null,null,null,null,null,null,0.97189861939238087]
[null,null,null,null,null,null,null,null,null,{"$f":"MIN(J7,I6,J5,K6)+1","v":1},null,null,{"$f":"MIN(M7,L6,M5,N6)+1","v":4},5,6,{"$f":"MIN(P7,O6,P5,Q6)+1","v":7},null,null,{"$f":"MIN(S7,R6,S5,T6)+1","v":10},null,null,null,null,null,null,null,null,null,null,null,null,null,0.85651397560355014]
[null,null,null,null,null,null,null,null,null,2,null,null,5,6,7,8,null,null,11,null,null,null,null,null,null,null,null,null,null,null,null,null,0.58391728087146333]
[null,null,null,null,null,null,null,null,null,{"$f":"MIN(I8,J7,K8,J9)+1","v":3},null,null,6,7,8,9,null,null,{"$f":"MIN(S9,R8,S7,T8)+1","v":12},null,null,null,null,null,null,null,null,null,null,null,null,null,0.89697523730571771]
[null,null,null,null,null,null,null,null,null,4,5,6,7,8,9,10,11,12,13,null,null,null,null,null,null,null,null,null,null,null,null,null,0.71830137402546912]
[null,null,null,null,null,null,null,null,null,5,{"$f":"MIN(K11,J10,K9,L10)+1","v":6},null,null,{"$f":"MIN(N11,M10,N9,O10)+1","v":9},10,null,null,{"$f":"MIN(R11,Q10,R9,S10)+1","v":13},14,null,null,null,null,null,null,null,null,null,null,null,null,null,0.65853394869872339]
[null,null,null,null,null,null,null,null,null,6,7,null,null,10,11,null,null,14,15,null,null,null,null,null,null,null,null,null,null,null,null,null,0.334122776227045]
[null,null,null,null,null,null,null,null,null,7,8,null,null,11,12,null,null,15,16,null,null,null,null,null,null,null,null,null,null,null,null,null,0.77024786244906451]
[null,null,null,null,null,null,null,null,null,null,null,null,null,null,null,null,null,null,null,null,null,null,null,null,null,null,null,null,null,null,null,null,0.4737668926762616]
[null,null,null,null,null,null,null,null,null,null,null,null,null,null,null,null,null,null,null,null,null,null,null,null,null,null,null,null,null,null,null,null,0.447310825502378]
[null,null,null,null,null,null,null,null,null,null,null,null,null,null,null,null,null,null,null,null,null,null,null,null,null,null,null,null,null,null,null,null,0.11312204103909784]
[null,null,null,null,null,null,null,null,null,null,null,null,null,null,null,null,null,null,null,null,null,null,null,null,null,null,null,null,null,null,null,null,0.36924098186136778]
[null,null,null,null,null,null,null,null,null,null,null,null,null,null,null,null,null,null,null,null,null,null,null,null,null,null,null,null,null,null,null,null,0.89634771320831885]
[null,null,null,null,null,null,null,null,null,null,null,null,null,null,null,null,null,null,null,null,null,null,null,null,null,null,null,null,null,null,null,null,0.51118125036141926]
[null,null,null,null,null,null,null,null,null,null,null,null,null,null,null,null,null,null,null,null,null,null,null,null,null,null,null,null,null,null,null,null,0.9298044112871684]
[null,null,null,null,null,null,null,null,null,null,null,null,null,null,null,null,null,null,null,null,null,null,null,null,null,null,null,null,null,null,null,null,0.71225892883064124]
[null,null,null,null,null,null,null,null,null,null,null,null,null,null,null,null,null,null,null,null,null,null,null,null,null,null,null,null,null,null,null,null,0.95363762642253569]
[null,null,null,null,null,null,null,null,null,null,null,null,null,null,null,null,null,null,null,null,null,null,null,null,null,null,null,null,null,null,null,null,0.98241012688502405]

{"sheet":"Automat 4","index":3,"n_rows":27,"n_cols":33,"rows_kept":27,"cut":false,"hidden":false,"merged":[]}
[null,null,null,null,null,null,null,null,null,null,null,null,null,0,"s",null,null,null,null,null,null,null,null,null,null,null,null,null,null,"Zufallsgenerator"]
[]
[null,"Stausymbol",null,null,null,null,null,null,null,{"$f":"MIN(I3,J2,K3,J4)+1","v":1},{"$f":"MIN(J3,K2,L3,K4)+1","v":2},3,4,5,{"$f":"MIN(O4,N3,O2,P3)+1","v":6},{"$f":"MIN(O3,P2,Q3,P4)+1","v":7},8,9,10,null,null,null,null,null,null,null,null,null,null,null,null,null,{"$f":"RAND()","v":0.50593533117894918}]
[null,null,null,null,null,null,null,null,null,0,1,2,3,4,5,6,7,8,9,null,null,null,null,null,null,null,null,null,null,null,null,null,{"$f":"RAND()","v":0.84821123849886049}]
[null,null,null,null,null,null,null,null,null,0,1,2,3,4,5,6,7,8,9,null,null,null,null,null,null,null,null,null,null,null,null,null,0.45190156377905288]
[null,null,null,null,null,null,null,null,null,{"$f":"MIN(J7,I6,J5,K6)+1","v":1},null,null,{"$f":"MIN(M7,L6,M5,N6)+1","v":4},5,6,{"$f":"MIN(P7,O6,P5,Q6)+1","v":7},null,null,{"$f":"MIN(S7,R6,S5,T6)+1","v":10},null,null,null,null,null,null,null,null,null,null,null,null,null,0.10982718634892696]
[null,null,null,null,null,null,null,null,null,2,null,null,5,6,7,8,null,null,{"$f":"MIN(R7,S6,T7,S8)+1","v":11},null,null,null,null,null,null,null,null,null,null,null,null,null,0.55551055017631734]
[null,null,null,null,null,null,null,null,null,{"$f":"MIN(I8,J7,K8,J9)+1","v":3},null,null,6,7,8,9,null,null,{"$f":"MIN(S9,R8,S7,T8)+1","v":12},null,null,null,null,null,null,null,null,null,null,null,null,null,0.35496556816351643]
[null,null,null,null,null,null,null,null,null,4,5,6,7,8,9,10,11,12,13,null,null,null,null,null,null,null,null,null,null,null,null,null,0.21435238151746916]
[null,null,null,null,null,null,null,null,null,5,{"$f":"MIN(K11,J10,K9,L10)+1","v":6},null,null,{"$f":"MIN(N11,M10,N9,O10)+1","v":9},10,null,null,{"$f":"MIN(R11,Q10,R9,S10)+1","v":13},14,null,null,null,null,null,null,null,null,null,null,null,null,null,0.40050914432054963]
[null,null,null,null,null,null,null,null,null,6,7,null,null,10,{"$f":"MIN(N11,O10,P11,O12)+1","v":11},null,null,14,15,null,null,null,null,null,null,null,null,null,null,null,null,null,0.95189753920999742]
[null,null,null,null,null,null,null,null,null,7,8,null,null,{"$f":"MIN(M12,N11,O12,N13)+1","v":11},12,null,null,15,16,null,null,null,null,null,null,null,null,null,null,null,null,null,0.46043169723455957]
[null,null,null,null,null,null,null,null,null,null,null,null,null,null,null,null,null,null,null,null,null,null,null,null,null,null,null,null,null,null,null,null,0.56812565132113024]
[null,null,null,null,null,null,null,null,null,null,null,null,null,null,null,null,null,null,null,null,null,null,null,null,null,null,null,null,null,null,null,null,0.47794855153557536]
[null,null,null,null,null,null,null,null,null,null,null,null,null,null,null,null,null,null,null,null,null,null,null,null,null,null,null,null,null,null,null,null,0.12246342135231147]
[null,null,null,null,null,null,null,null,null,null,null,null,null,null,null,null,null,null,null,null,null,null,null,null,null,null,null,null,null,null,null,null,0.4867290682671771]
[null,null,null,null,null,null,null,null,null,null,null,null,null,null,null,null,null,null,null,null,null,null,null,null,null,null,null,null,null,null,null,null,0.46579040335744304]
[null,null,null,null,null,null,null,null,null,null,null,null,null,null,null,null,null,null,null,null,null,null,null,null,null,null,null,null,null,null,null,null,0.18558231432379013]
[null,null,null,null,null,null,null,null,null,null,null,null,null,null,null,null,null,null,null,null,null,null,null,null,null,null,null,null,null,null,null,null,0.27537136154882569]
[null,null,null,null,null,null,null,null,null,null,null,null,null,null,null,null,null,null,null,null,null,null,null,null,null,null,null,null,null,null,null,null,0.26028706282572456]
[null,null,null,null,null,null,null,null,null,null,null,null,null,null,null,null,null,null,null,null,null,null,null,null,null,null,null,null,null,null,null,null,0.55844552065722375]
[null,null,null,null,null,null,null,null,null,null,null,null,null,null,null,null,null,null,null,null,null,null,null,null,null,null,null,null,null,null,null,null,{"$f":"RAND()","v":0.68667395208756121}]
[null,null,null,null,null,null,null,null,null,null,null,null,null,null,null,null,null,null,null,null,null,null,null,null,null,null,null,null,null,null,null,null,{"$f":"RAND()","v":0.52906181770843153}]
[null,null,null,null,null,null,null,null,null,null,null,null,null,null,null,null,null,null,null,null,null,null,null,null,null,null,null,null,null,null,null,null,{"$f":"RAND()","v":0.28144896109258344}]
[null,null,null,null,null,null,null,null,null,null,null,null,null,null,null,null,null,null,null,null,null,null,null,null,null,null,null,null,null,null,null,null,0.7764759892163472]
[null,null,null,null,null,null,null,null,null,null,null,null,null,null,null,null,null,null,null,null,null,null,null,null,null,null,null,null,null,null,null,null,0.41371206199337163]
[null,null,null,null,null,null,null,null,null,null,null,null,null,null,null,null,null,null,null,null,null,null,null,null,null,null,null,null,null,null,null,null,0.81860302057780576]

{"sheet":"Automat 5","index":4,"n_rows":22,"n_cols":33,"rows_kept":22,"cut":false,"hidden":false,"merged":[]}
[null,null,null,null,null,null,null,null,null,null,null,null,null,0,"s",null,null,null,null,null,null,null,null,null,null,null,null,null,null,"Zufallsgenerator"]
[]
[null,"Stausymbol",null,null,null,null,null,null,null,{"$f":"MIN(I3,J2,K3,J4)+1","v":1},{"$f":"MIN(J3,K2,L3,K4)+1","v":2},3,4,5,6,{"$f":"MIN(P4,O3,P2,Q3)+1","v":7},{"$f":"MIN(P3,Q2,R3,Q4)+1","v":8},9,10,null,null,null,null,null,null,null,null,null,null,null,null,null,{"$f":"RAND()","v":0.99155605466219321}]
[null,null,null,null,null,null,null,null,null,0,1,2,3,4,5,6,7,8,9,null,null,null,null,null,null,null,null,null,null,null,null,null,{"$f":"RAND()","v":0.41329028242078947}]
[null,null,null,null,null,null,null,null,null,0,1,2,3,4,5,null,null,9,10,null,null,null,null,null,null,null,null,null,null,null,null,null,4.2129767782105199E-2]
[null,null,null,null,null,null,null,null,null,{"$f":"MIN(J7,I6,J5,K6)+1","v":1},null,null,null,5,6,{"$f":"MIN(P7,O6,P5,Q6)+1","v":7},8,null,{"$f":"MIN(S7,R6,S5,T6)+1","v":11},null,null,null,null,null,null,null,null,null,null,null,null,null,0.28161590131629044]
[null,null,null,null,null,null,null,null,null,{"$f":"MIN(I7,J6,K7,J8)+1","v":2},null,{"$f":"MIN(L8,K7,L6,M7)+1","v":8},7,6,7,8,9,null,12,null,null,null,null,null,null,null,null,null,null,null,null,null,0.32172704829035159]
[null,null,null,null,null,null,null,null,null,{"$f":"MIN(J9,I8,J7,K8)+1","v":3},null,9,8,7,8,null,null,null,13,null,null,null,null,null,null,null,null,null,null,null,null,null,0.97588729216870429]
[null,null,null,null,null,null,null,null,null,4,null,null,null,8,9,{"$f":"MIN(P10,O9,P8,Q9)+1","v":10},11,null,{"$f":"MIN(S10,R9,S8,T9)+1","v":14},null,null,null,null,null,null,null,null,null,null,null,null,null,0.26537985282086141]
[null,null,null,null,null,null,null,null,null,{"$f":"MIN(J11,I10,J9,K10)+1","v":5},null,{"$f":"MIN(L11,K10,L9,M10)+1","v":11},10,9,10,11,12,null,15,null,null,null,null,null,null,null,null,null,null,null,null,null,0.73682748052158353]
[null,null,null,null,null,null,null,null,null,6,null,null,null,null,null,null,null,null,16,null,null,null,null,null,null,null,null,null,null,null,null,null,1.5343824690557173E-2]
[null,null,null,null,null,null,null,null,null,7,8,{"$f":"MIN(L13,K12,L11,M12)+1","v":9},10,11,{"$f":"MIN(O13,N12,O11,P12)+1","v":12},13,{"$f":"MIN(Q13,P12,Q11,R12)+1","v":14},15,16,null,null,null,null,null,null,null,null,null,null,null,null,null,0.9622094405601016]
[null,null,null,null,null,null,null,null,null,null,null,null,null,null,null,null,null,null,null,null,null,null,null,null,null,null,null,null,null,null,null,null,3.8419517873430231E-2]
[null,null,null,null,null,null,null,null,null,null,null,null,null,null,null,null,null,null,null,null,null,null,null,null,null,null,null,null,null,null,null,null,0.70395150991619448]
[null,null,null,null,null,null,null,null,null,null,null,null,null,null,null,null,null,null,null,null,null,null,null,null,null,null,null,null,null,null,null,null,0.2116936989049476]
[null,null,null,null,null,null,null,null,null,null,null,null,null,null,null,null,null,null,null,null,null,null,null,null,null,null,null,null,null,null,null,null,0.5113289779418545]
[null,null,null,null,null,null,null,null,null,null,null,null,null,null,null,null,null,null,null,null,null,null,null,null,null,null,null,null,null,null,null,null,8.6555796517588712E-2]
[null,null,null,null,null,null,null,null,null,null,null,null,null,null,null,null,null,null,null,null,null,null,null,null,null,null,null,null,null,null,null,null,0.1717841247129348]
[null,null,null,null,null,null,null,null,null,null,null,null,null,null,null,null,null,null,null,null,null,null,null,null,null,null,null,null,null,null,null,null,0.31141188255380892]
[null,null,null,null,null,null,null,null,null,null,null,null,null,null,null,null,null,null,null,null,null,null,null,null,null,null,null,null,null,null,null,null,0.52419477900859179]
[null,null,null,null,null,null,null,null,null,null,null,null,null,null,null,null,null,null,null,null,null,null,null,null,null,null,null,null,null,null,null,null,0.879781800347744]
[null,null,null,null,null,null,null,null,null,null,null,null,null,null,null,null,null,null,null,null,null,null,null,null,null,null,null,null,null,null,null,null,0.82429433956744091]

{"sheet":"Automat 6","index":5,"n_rows":22,"n_cols":33,"rows_kept":22,"cut":false,"hidden":false,"merged":[]}
[null,null,null,null,null,null,null,null,null,null,null,null,null,0,"s",null,null,null,null,null,null,null,null,null,null,null,null,null,null,"Zufallsgenerator"]
[]
[null,"Stausymbol",null,null,null,null,null,null,null,{"$f":"MIN(I3,J2,K3,J4)+1","v":1},{"$f":"MIN(J3,K2,L3,K4)+1","v":2},3,4,5,6,{"$f":"MIN(P4,O3,P2,Q3)+1","v":7},{"$f":"MIN(P3,Q2,R3,Q4)+1","v":8},9,10,null,null,null,null,null,null,null,null,null,null,null,null,null,{"$f":"RAND()","v":0.52330909522260849}]
[null,null,null,null,null,null,null,null,null,0,1,2,3,4,5,6,7,8,9,null,null,null,null,null,null,null,null,null,null,null,null,null,{"$f":"RAND()","v":0.53028944410149992}]
[null,null,null,null,null,null,null,null,null,0,1,{"$f":"MIN(L6,K5,L4,M5)+1","v":2},3,4,5,null,null,9,10,null,null,null,null,null,null,null,null,null,null,null,null,null,0.98662281822467701]
[null,null,null,null,null,null,null,null,null,{"$f":"MIN(J7,I6,J5,K6)+1","v":1},null,null,null,5,6,{"$f":"MIN(P7,O6,P5,Q6)+1","v":7},8,null,{"$f":"MIN(S7,R6,S5,T6)+1","v":11},null,null,null,null,null,null,null,null,null,null,null,null,null,0.92108604218289236]
[null,null,null,null,null,null,null,null,null,2,null,{"$f":"MIN(L8,K7,L6,M7)+1","v":8},7,6,7,8,9,null,12,null,null,null,null,null,null,null,null,null,null,null,null,null,0.11400205369319083]
[null,null,null,null,null,null,null,null,null,3,null,9,{"$f":"MIN(L8,M7,N8,M9)+1","v":8},7,8,null,null,null,13,null,null,null,null,null,null,null,null,null,null,null,null,null,0.27652381970828432]
[null,null,null,null,null,null,null,null,null,4,null,null,null,8,9,{"$f":"MIN(P10,O9,P8,Q9)+1","v":10},11,null,14,null,null,null,null,null,null,null,null,null,null,null,null,null,0.59847380258599725]
[null,null,null,null,null,null,null,null,null,5,null,11,{"$f":"MIN(L10,M9,N10,M11)+1","v":10},9,10,11,12,null,15,null,null,null,null,null,null,null,null,null,null,null,null,null,0.25788774544256909]
[null,null,null,null,null,null,null,null,null,6,null,null,null,null,null,null,null,null,{"$f":"MIN(R11,S10,T11,S12)+1","v":16},null,null,null,null,null,null,null,null,null,null,null,null,null,0.3355051110113757]
[null,null,null,null,null,null,null,null,null,{"$f":"MIN(I12,J11,K12,J13)+1","v":7},8,{"$f":"MIN(L13,K12,L11,M12)+1","v":9},10,{"$f":"MIN(M12,N11,O12,N13)+1","v":11},{"$f":"MIN(O13,N12,O11,P12)+1","v":12},13,14,15,16,null,null,null,null,null,null,null,null,null,null,null,null,null,0.40325324121878181]
[null,null,null,null,null,null,null,null,null,null,null,null,null,null,null,null,null,null,null,null,null,null,null,null,null,null,null,null,null,null,null,null,0.55180774068553551]
[null,null,null,null,null,null,null,null,null,null,null,null,null,null,null,null,null,null,null,null,null,null,null,null,null,null,null,null,null,null,null,null,0.17475827443684777]
[null,null,null,null,null,null,null,null,null,null,null,null,null,null,null,null,null,null,null,null,null,null,null,null,null,null,null,null,null,null,null,null,0.3736531998951621]
[null,null,null,null,null,null,null,null,null,null,null,null,null,null,null,null,null,null,null,null,null,null,null,null,null,null,null,null,null,null,null,null,0.28279345947497259]
[null,null,null,null,null,null,null,null,null,null,null,null,null,null,null,null,null,null,null,null,null,null,null,null,null,null,null,null,null,null,null,null,0.22895598362342451]
[null,null,null,null,null,null,null,null,null,null,null,null,null,null,null,null,null,null,null,null,null,null,null,null,null,null,null,null,null,null,null,null,0.81991496017890231]
[null,null,null,null,null,null,null,null,null,null,null,null,null,null,null,null,null,null,null,null,null,null,null,null,null,null,null,null,null,null,null,null,0.84601138945670507]
[null,null,null,null,null,null,null,null,null,null,null,null,null,null,null,null,null,null,null,null,null,null,null,null,null,null,null,null,null,null,null,null,0.26085129269052332]
[null,null,null,null,null,null,null,null,null,null,null,null,null,null,null,null,null,null,null,null,null,null,null,null,null,null,null,null,null,null,null,null,0.53823667080016369]
[null,null,null,null,null,null,null,null,null,null,null,null,null,null,null,null,null,null,null,null,null,null,null,null,null,null,null,null,null,null,null,null,0.98882518995539403]